bitfinex/quotes_ETHUSD_20260213
["timestamp","ask_amount","ask_price","bid_price","bid_amount"]
[1770989769543,1.2642225,1977.5,1976.2,1.24576952]
[1770989770237,0.002,1977.1,1976.2,1.24576952]
[1770989770732,0.002,1977.1,1976.2,6.30573005]
[1770989770940,0.002,1977.1,1976.2,2.51078605]
[1770989771126,0.002,1977.1,1976.1,1.26609251]
[1770989771504,0.002,1977.1,1976.1,0.001]
[1770989771705,1.26563556,1977.1,1976.1,0.001]
[1770989771908,1.26563556,1977.1,1975.3,0.001]
[1770989771909,10.14745827,1976.3,1975.3,0.001]
[1770989772110,1.36603556,1976.2,1975.3,0.001]
[1770989772363,16.59717456,1976.1,1975.2,0.001]
[1770989772512,1.26363556,1976.1,1975.0,0.00153886]
[1770989772854,2.030609,1976.3,1975.0,0.00153886]
[1770989773012,1.26492612,1976.4,1975.0,0.00153886]
[1770989774150,1.26363556,1976.2,1975.0,0.00153886]
[1770989774370,1.26363556,1975.9,1974.8,0.24750862]
[1770989774646,1.26363556,1975.9,1974.2,1.24576952]
[1770989774647,0.1024,1975.8,1974.2,1.24576952]
[1770989774811,0.1024,1975.6,1974.3,1.26627158]
[1770989775012,1.26537429,1975.7,1974.4,1.24576952]
[1770989775927,1.2653565,1975.8,1974.4,1.24576952]
[1770989776613,1.26672152,1976.0,1974.6,1.24576952]
[1770989776814,1.26672152,1976.0,1974.3,1.26627158]
[1770989777046,1.26672152,1976.0,1974.3,2.5120411]
[1770989777354,1.26672152,1976.0,1974.4,1.24576952]
[1770989777355,8.164348,1975.9,1974.4,1.24576952]
[1770989777557,2.53035708,1976.0,1974.4,1.24576952]
[1770989778118,1.36603556,1975.9,1974.1,0.001]
[1770989778453,1.36603556,1975.9,1974.1,1.26736114]
[1770989778454,1.26363556,1975.6,1974.1,1.26736114]
[1770989779217,1.2655024,1975.5,1974.1,0.001]
[1770989779417,1.2655024,1975.5,1974.1,1.24676952]
[1770989780054,0.1024,1975.4,1974.1,0.001]
[1770989780931,1.36603556,1975.4,1974.1,0.001]
[1770989781253,1.36603556,1975.4,1973.2,0.001]
[1770989781254,1.26601509,1974.7,1973.2,0.001]
[1770989781641,2.52965065,1974.7,1973.2,0.001]
[1770989781818,1.26601509,1974.7,1973.2,1.24676952]
[1770989782457,1.26363556,1974.5,1973.2,0.001]
[1770989782655,11.41347336,1974.7,1973.2,0.001]
[1770989782656,0.1024,1974.6,1973.2,0.001]
[1770989782832,0.1024,1974.6,1974.0,0.001]
[1770989783032,0.1024,1974.4,1973.3,0.001]
[1770989783548,1.26627158,1974.3,1973.3,0.001]
[1770989785045,0.1024,1973.7,1972.2,1.24576952]
[1770989785450,1.26672071,1973.6,1972.3,1.26755564]
[1770989785637,1.26672071,1973.6,1972.4,1.24576952]
[1770989785828,0.00153886,1973.0,1972.4,1.24576952]
[1770989786220,1.26672071,1973.6,1972.2,2.51334449]
[1770989787326,5.06688285,1973.8,1972.4,1.26749138]
[1770989787553,5.0662486,1973.9,1972.5,1.24576952]
[1770989788352,1.26806705,1974.0,1972.7,1.24576952]
[1770989788353,1.26805509,1974.0,1972.7,1.24576952]
[1770989788522,1.26805509,1974.0,1972.8,17.529348]
[1770989788523,0.00153886,1974.0,1972.8,17.529348]
[1770989788854,1.26802282,1974.0,1972.9,1.24576952]
[1770989789721,0.00153886,1974.0,1973.0,1.26710593]
[1770989789939,0.00153886,1974.0,1973.1,1.24576952]
[1770989790566,0.00153886,1975.0,1973.5,1.15064683]
[1770989790768,1.26741019,1975.0,1973.7,1.15064683]
[1770989790951,0.00153886,1975.0,1973.9,1.15064683]
[1770989791148,0.00153886,1975.0,1974.0,0.913]
[1770989791471,1.26588688,1974.9,1973.7,1.15064683]
[1770989791677,5.06508638,1975.0,1973.9,1.15064683]
[1770989791678,1.2673662,1975.0,1973.9,1.15064683]
[1770989791841,0.00153886,1975.0,1973.5,1.15064683]
[1770989793749,18.25012797,1974.9,1973.2,1.26697749]
[1770989793973,2.36725097,1974.9,1973.2,1.26697749]
[1770989794649,5.81531809,1974.8,1973.1,2.41763748]
[1770989794843,12.03658607,1974.8,1973.1,2.41763748]
[1770989795073,12.03658607,1974.8,1973.2,0.001]
[1770989795272,0.1024,1974.8,1973.2,1.15164683]
[1770989795598,0.002,1974.5,1973.2,1.15164683]
[1770989795752,0.002,1974.5,1973.4,1.15064683]
[1770989796080,0.002,1974.5,1973.5,1.26678489]
[1770989796283,0.002,1974.5,1973.4,1.15064683]
[1770989796445,0.002,1974.5,1973.3,1.26687905]
[1770989796648,0.002,1974.5,1973.2,1.26792909]
[1770989797584,0.002,1974.5,1973.2,0.001]
[1770989798695,0.002,1974.5,1973.2,1.11804799]
[1770989798902,0.002,1974.5,1973.2,0.001]
[1770989799767,1.1800622,1974.3,1973.2,0.001]
[1770989799981,1.26652819,1973.9,1973.0,0.00253886]
[1770989800202,1.26652819,1973.9,1972.3,0.001]
[1770989800203,10.83282198,1973.6,1972.3,0.001]
[1770989800416,10.83282198,1973.6,1972.3,1.26854407]
[1770989800979,1.26652819,1973.9,1972.4,1.11704799]
[1770989801690,1.1800622,1973.8,1972.3,1.26854407]
[1770989801995,1.26665653,1973.7,1972.3,0.001]
[1770989802295,1.26665653,1973.7,1972.3,1.11804799]
[1770989802861,1.26805077,1974.0,1972.5,1.11704799]
[1770989803096,1.26805077,1974.0,1972.4,0.18685624]
[1770989803097,1.26805077,1974.0,1972.7,1.11704799]
[1770989803293,1.26805077,1974.0,1972.9,1.11704799]
[1770989803509,1.26805077,1974.0,1972.9,2.03004799]
[1770989804065,1.26805077,1974.0,1973.1,1.11704799]
[1770989804066,0.00153886,1974.0,1973.1,1.11704799]
[1770989806173,0.00153886,1974.0,1973.2,1.26697749]
[1770989807065,0.00153886,1974.0,1973.2,2.38402548]
[1770989808486,0.00153886,1974.0,1973.2,1.2679553]
[1770989808665,0.00153886,1974.0,1973.2,0.001]
[1770989809380,0.00153886,1974.0,1973.2,1.26796874]
[1770989810069,0.00153886,1974.0,1973.2,2.38501673]
[1770989810970,0.00153886,1974.0,1973.3,1.11704799]
[1770989811165,0.002,1974.4,1973.5,1.11704799]
[1770989811975,0.002,1974.6,1973.7,1.11704799]
[1770989812283,0.00153886,1975.0,1973.8,2.17954084]
[1770989812483,0.00153886,1975.0,1973.8,1.26654084]
[1770989812680,1.18160106,1975.0,1973.5,5.06693303]
[1770989812862,1.18160106,1975.0,1973.5,7.25193303]
[1770989813994,1.18160106,1975.0,1973.6,3.097]
[1770989814295,1.26588688,1974.9,1973.7,2.184]
[1770989814592,1.1800622,1974.7,1973.3,1.2668869]
[1770989814792,1.1800622,1974.7,1973.3,1.26690846]
[1770989815380,1.1800622,1974.7,1973.3,3.44990846]
[1770989816498,2.4461414,1974.6,1973.3,3.44990846]
[1770989816698,1.1800622,1974.3,1973.2,0.001]
[1770989817108,1.1800622,1974.2,1973.2,0.001]
[1770989818282,2.44646207,1974.1,1973.2,0.001]
[1770989818483,1.1800622,1974.0,1973.2,0.001]
[1770989820093,1.1800622,1974.0,1973.0,0.00253886]
[1770989820293,2.44671873,1973.7,1973.0,0.00253886]
[1770989820595,3.1170622,1973.6,1972.3,0.001]
[1770989820778,3.1170622,1973.6,1973.3,0.001]
[1770989820977,3.1170622,1973.6,1972.3,0.001]
[1770989821374,1.14242395,1973.5,1973.2,0.001]
[1770989821661,1.14242395,1973.5,1972.3,0.001]
[1770989821930,1.14242395,1973.5,1972.4,0.001]
[1770989822123,11.98631562,1973.4,1972.4,0.001]
[1770989822406,11.98631562,1973.4,1972.0,0.00153886]
[1770989822407,1.26717015,1972.9,1972.0,0.00153886]
[1770989823615,1.14242395,1973.6,1972.1,2.02482787]
[1770989823812,12.11074076,1973.4,1972.0,0.00153886]
[1770989823977,1.26684909,1973.4,1972.0,1.11336673]
[1770989824290,2.40927304,1973.4,1972.0,0.00153886]
[1770989824496,2.40927304,1973.4,1972.0,1.11336673]
[1770989824497,1.26684909,1973.4,1972.0,1.11336673]
[1770989825072,1.26684909,1973.4,1972.1,1.11182787]
[1770989826185,1.26684909,1973.4,1972.2,3.087]
[1770989826374,1.26684909,1973.4,1972.4,1.11182787]
[1770989826996,2.17983644,1973.5,1972.4,1.11182787]
[1770989827510,2.17979328,1973.5,1972.4,1.11182787]
[1770989828513,2.17979328,1973.5,1972.1,2.37951206]
[1770989829016,2.17979328,1973.5,1972.1,5.46651206]
[1770989829220,2.17979328,1973.5,1972.2,1.11182787]
[1770989829433,3.20375006,1973.6,1972.4,1.11182787]
[1770989829605,1.26675006,1973.6,1972.5,1.13646161]
[1770989829797,5.0662142,1973.9,1972.5,1.13646161]
[1770989830321,0.00153886,1974.0,1972.7,1.11182787]
[1770989830523,0.00153886,1974.0,1972.8,3.11062999]
[1770989830825,0.00153886,1974.0,1972.9,1.11182787]
[1770989831023,0.00153886,1974.0,1972.9,4.19682787]
[1770989831325,0.00153886,1974.0,1973.0,4.19682787]
[1770989831543,0.00153886,1974.0,1973.0,1.11182787]
[1770989831692,0.00153886,1974.0,1972.6,2.37919074]
[1770989831887,0.00153886,1974.0,1972.8,1.11182787]
[1770989832523,0.00153886,1974.0,1973.0,1.11182787]
[1770989833194,0.00153886,1974.0,1973.2,1.11182787]
[1770989833642,0.00153886,1974.0,1973.4,1.11182787]
[1770989834811,0.00153886,1974.0,1973.5,1.26678489]
[1770989835012,0.002,1973.9,1973.5,1.26678489]
[1770989836124,0.002,1973.9,1973.2,2.171]
[1770989836433,0.002,1973.9,1973.3,1.11182787]
[1770989837030,0.002,1973.9,1973.4,1.26684909]
[1770989837607,0.002,1973.9,1973.3,1.26686437]
[1770989837814,1.26612045,1974.6,1973.4,1.11182787]
[1770989839130,5.06631682,1974.8,1973.5,1.26678489]
[1770989839632,6.20874077,1974.8,1973.6,2.171]
[1770989840038,1.14242395,1974.7,1973.1,2.18004171]
[1770989840207,1.14242395,1974.5,1973.1,1.26704171]
[1770989840429,11.98631562,1974.4,1973.1,4.35004171]
[1770989840619,1.14242395,1974.4,1973.1,4.35004171]
[1770989840923,1.93,1974.6,1973.1,5.46186958]
[1770989841094,1.26614332,1974.5,1973.3,1.26691329]
[1770989841294,1.26614332,1974.5,1973.3,2.37874116]
[1770989841724,1.26605037,1974.7,1973.4,1.11182787]
[1770989841938,1.26605037,1974.7,1973.5,2.17]
[1770989841939,1.14242395,1974.6,1973.5,2.17]
[1770989842144,1.26605037,1974.7,1973.5,2.17]
[1770989842298,1.26605037,1974.7,1973.5,3.28182787]
[1770989842498,1.26605037,1974.7,1973.5,1.11182787]
[1770989842733,2.40847432,1974.7,1973.5,2.17]
[1770989843231,1.26605037,1974.7,1973.6,1.26672071]
[1770989843792,1.14242395,1974.6,1973.4,1.26679804]
[1770989844023,1.14242395,1974.6,1973.4,3.43279804]
[1770989844230,1.26605037,1974.7,1973.4,3.43279804]
[1770989844437,1.26605037,1974.7,1973.5,1.11182787]
[1770989844619,1.26605037,1974.7,1973.4,1.26679804]
[1770989844824,1.26605037,1974.7,1973.4,3.43179804]
[1770989844825,1.14242395,1974.6,1973.4,3.43179804]
[1770989845338,1.26614332,1974.5,1973.4,3.43179804]
[1770989845537,1.26614332,1974.5,1973.4,3.42879804]
[1770989847648,2.40856727,1974.5,1973.0,1.11336673]
[1770989847867,2.40856727,1974.5,1973.1,8.13807396]
[1770989848231,2.40856727,1974.5,1973.5,0.001]
[1770989849817,1.26614332,1974.5,1973.5,0.001]
[1770989850151,1.14242395,1974.4,1973.5,0.001]
[1770989850459,3.05542395,1974.4,1973.5,0.001]
[1770989851055,1.913,1974.4,1973.5,0.001]
[1770989851750,1.26627158,1974.3,1973.5,0.001]
[1770989852824,1.26627158,1974.3,1973.2,5.06788553]
[1770989852825,1.00093806,1974.2,1973.0,0.00153886]
[1770989853024,1.00093806,1974.1,1973.0,0.00153886]
[1770989853218,0.913,1974.2,1973.0,2.26064967]
[1770989853460,1.26627158,1974.3,1973.2,0.99200577]
[1770989853648,1.26627158,1974.3,1973.4,1.26684909]
[1770989854575,2.26720964,1974.3,1973.2,2.138]
[1770989854896,12.26765057,1974.3,1973.1,2.134]
[1770989855070,2.26720964,1974.3,1973.1,2.134]
[1770989855573,1.00093806,1974.2,1973.0,0.00153886]
[1770989855737,1.26639987,1974.1,1973.0,0.00153886]
[1770989855933,1.902,1974.0,1973.0,0.00153886]
[1770989857349,1.902,1974.0,1973.1,2.129]
[1770989857752,1.26652819,1973.9,1973.1,3.39604171]
[1770989858061,1.26650466,1974.0,1973.1,3.39604171]
[1770989858677,1.26650466,1974.0,1973.0,1.26863153]
[1770989859178,1.26650466,1974.0,1973.0,2.311984]
[1770989859692,1.26650466,1974.0,1973.1,2.128]
[1770989859887,5.06585612,1974.2,1973.2,1.26697749]
[1770989861080,6.07770804,1974.2,1973.2,0.001]
[1770989861279,0.002,1973.9,1973.2,0.001]
[1770989863559,0.002,1973.9,1973.2,1.04434442]
[1770989864084,0.002,1973.9,1973.3,1.26691329]
[1770989864582,0.002,1973.9,1973.3,2.31025771]
[1770989864792,0.002,1973.9,1973.2,1.26792996]
[1770989865283,0.002,1973.9,1973.3,2.119]
[1770989865587,0.002,1973.9,1973.3,3.16234442]
[1770989866286,0.002,1973.9,1973.4,2.31019351]
[1770989867683,0.002,1973.9,1973.5,1.04334442]
[1770989868073,0.002,1974.0,1973.6,2.31006513]
[1770989868480,0.002,1974.0,1973.7,2.122]
[1770989868857,0.002,1974.0,1973.4,1.26680413]
[1770989869088,0.002,1974.0,1973.5,2.122]
[1770989869606,0.002,1974.0,1973.5,2.121]
[1770989869801,0.002,1974.0,1973.3,2.31021386]
[1770989869989,0.002,1974.0,1973.4,2.12]
[1770989870191,0.002,1974.0,1973.2,5.0688979]
[1770989870395,1.01385192,1974.0,1973.2,1.26796147]
[1770989870706,0.002,1974.0,1973.2,2.31130589]
[1770989871005,0.002,1974.0,1973.4,1.04334442]
[1770989871215,0.002,1974.0,1973.2,1.26796147]
[1770989871382,0.002,1974.0,1973.5,2.116]
[1770989871875,0.002,1974.0,1973.5,3.15934442]
[1770989872076,0.002,1974.0,1973.6,1.26672071]
[1770989872597,0.002,1974.0,1973.6,2.31006513]
[1770989872902,0.002,1974.0,1973.4,5.0672545]
[1770989873097,0.002,1974.0,1973.5,1.04334442]
[1770989873402,0.002,1974.0,1973.6,1.04334442]
[1770989873605,1.26801509,1974.7,1973.6,1.04334442]
[1770989873906,0.002,1974.7,1973.6,1.04334442]
[1770989874097,0.002,1974.7,1973.8,1.04334442]
[1770989874268,0.002,1974.7,1973.9,2.117]
[1770989874473,0.002,1974.7,1973.9,3.16034442]
[1770989875004,0.002,1974.7,1973.9,1.04334442]
[1770989875192,0.002,1974.7,1974.0,2.114]
[1770989875394,0.002,1974.7,1973.7,1.26665653]
[1770989875586,0.002,1974.7,1974.0,2.114]
[1770989875779,0.002,1974.7,1973.7,2.31000095]
[1770989875980,0.002,1974.7,1973.8,3.027]
[1770989876182,0.002,1974.7,1973.9,1.26652819]
[1770989877573,0.002,1974.7,1974.0,2.109]
[1770989877983,0.002,1974.7,1973.7,2.3099483]
[1770989878188,0.002,1974.7,1973.9,1.26652819]
[1770989878801,0.002,1974.7,1974.0,1.04334442]
[1770989879305,0.002,1974.7,1974.1,2.104]
[1770989880004,0.002,1974.7,1973.9,1.26652819]
[1770989880204,0.002,1974.7,1974.0,3.36742386]
[1770989880416,0.002,1974.7,1973.7,1.04334442]
[1770989880709,1.01385192,1974.7,1973.3,5.06760848]
[1770989880883,1.01385192,1974.7,1973.6,2.1]
[1770989881481,0.002,1974.7,1973.7,0.97177799]
[1770989882876,1.26801509,1974.7,1973.8,2.23837034]
[1770989883513,0.002,1974.7,1973.8,2.23837034]
[1770989883700,0.002,1974.7,1973.9,2.091]
[1770989884619,0.002,1974.7,1973.6,5.06636943]
[1770989884620,0.95900778,1974.7,1973.6,2.09]
[1770989884826,2.22308698,1974.6,1973.4,1.26684909]
[1770989885005,0.95700778,1974.5,1973.4,2.09]
[1770989885207,0.95700778,1974.5,1973.7,0.001]
[1770989887509,1.26620745,1974.4,1973.7,0.001]
[1770989887826,2.22321523,1974.4,1973.7,0.001]
[1770989888215,1.26620745,1974.4,1973.7,0.001]
[1770989889030,1.26619498,1974.5,1973.7,0.001]
[1770989889597,0.002,1974.6,1973.7,0.97277799]
[1770989891402,0.002,1974.6,1973.8,2.068]
[1770989891608,0.002,1974.6,1973.9,1.26652819]
[1770989891926,0.002,1974.6,1973.7,0.001]
[1770989891927,0.95900778,1974.6,1973.7,0.001]
[1770989892297,0.002,1974.6,1973.7,0.001]
[1770989892494,0.95900778,1974.6,1973.7,0.001]
[1770989893511,0.002,1974.6,1973.7,1.26765646]
[1770989893710,0.002,1974.6,1973.7,0.001]
[1770989894101,0.002,1974.6,1973.7,0.97277799]
[1770989895498,0.002,1974.6,1973.8,0.97177799]
[1770989895698,0.002,1974.8,1974.2,0.97177799]
[1770989896009,0.002,1974.8,1974.3,2.064]
[1770989896324,0.002,1974.8,1974.4,2.064]
[1770989896733,0.002,1974.8,1974.0,1.26642331]
[1770989896933,0.002,1974.8,1973.8,1.26653918]
[1770989897133,0.95900778,1974.8,1973.7,3.33064105]
[1770989897927,1.26601509,1974.7,1973.7,4.30241549]
[1770989898298,1.26601509,1974.7,1973.8,2.063]
[1770989898908,1.26601509,1974.7,1973.7,0.001]
[1770989898909,0.95700778,1974.6,1973.7,0.001]
[1770989899725,2.22321523,1974.4,1973.9,0.001]
[1770989901720,0.95700778,1974.3,1973.7,0.001]
[1770989901898,1.26633573,1974.2,1973.5,0.001]
[1770989902698,2.22334351,1974.2,1973.5,0.001]
[1770989903100,0.95700778,1974.1,1973.5,0.001]
[1770989903907,1.26646403,1974.0,1973.5,0.001]
[1770989904103,1.26646403,1974.0,1973.2,0.001]
[1770989904505,1.26633573,1974.2,1973.2,0.97277799]
[1770989905212,0.002,1974.6,1973.2,0.97277799]
[1770989905437,0.002,1974.6,1973.6,0.97177799]
[1770989905624,0.002,1974.6,1973.8,0.97177799]
[1770989905829,0.002,1974.6,1974.0,0.97177799]
[1770989906030,0.002,1974.8,1974.0,0.97177799]
[1770989906412,0.002,1974.8,1974.2,0.97177799]
[1770989907534,0.002,1974.8,1974.3,2.055]
[1770989907708,0.002,1974.8,1974.2,3.02677799]
[1770989908037,0.002,1974.8,1974.1,3.32134859]
[1770989908241,0.002,1974.8,1974.2,0.97177799]
[1770989909534,0.002,1974.8,1974.1,3.32134859]
[1770989909535,0.002,1974.8,1974.3,2.055]
[1770989909737,0.002,1974.8,1974.4,0.97177799]
[1770989909962,0.002,1975.3,1974.5,1.26614332]
[1770989910256,0.002,1975.3,1974.5,2.23792131]
[1770989910463,0.002,1975.3,1974.6,0.97177799]
[1770989912139,0.002,1975.4,1974.8,0.91947039]
[1770989912417,0.002,1975.4,1974.9,2.97347039]
[1770989912856,0.002,1975.6,1975.0,0.91947039]
[1770989913022,0.002,1975.8,1975.0,0.91947039]
[1770989913217,1.26731068,1975.8,1975.0,0.91947039]
[1770989913419,0.002,1975.8,1975.1,2.053]
[1770989913732,0.002,1975.8,1975.1,2.966]
[1770989913932,0.002,1975.8,1975.2,0.91947039]
[1770989914249,0.002,1975.8,1975.3,1.26563053]
[1770989914455,0.002,1975.8,1975.3,3.31863053]
[1770989914640,0.002,1975.8,1974.9,0.91947039]
[1770989914641,0.002,1975.8,1974.9,5.98298074]
[1770989914839,0.002,1975.8,1975.0,2.053]
[1770989915240,0.002,1975.8,1974.9,1.26583517]
[1770989915444,0.002,1975.8,1975.0,2.052]
[1770989916138,0.002,1975.8,1975.0,3.31781123]
[1770989916334,0.002,1975.8,1974.9,2.052]
[1770989917062,0.002,1975.8,1974.9,2.94386771]
[1770989918135,0.002,1975.8,1975.0,2.05]
[1770989918359,0.002,1975.8,1975.0,3.31578577]
[1770989918726,0.002,1975.8,1975.0,1.26578577]
[1770989919457,0.002,1975.8,1975.0,2.15765348]
[1770989920326,0.002,1975.8,1975.1,2.049]
[1770989921260,0.93809298,1975.7,1974.2,0.89186771]
[1770989921446,0.002,1975.8,1974.4,0.89186771]
[1770989921766,0.002,1975.8,1974.8,0.89186771]
[1770989921978,0.002,1975.8,1975.0,0.89186771]
[1770989922350,0.002,1975.8,1975.1,2.1576264]
[1770989922551,0.002,1975.8,1975.1,2.047]
[1770989922882,0.94009298,1975.8,1974.4,1.80386771]
[1770989923172,0.93809298,1975.7,1974.4,2.959]
[1770989923346,0.93809298,1975.5,1974.3,2.046]
[1770989924058,0.93809298,1975.5,1974.1,2.15826758]
[1770989924372,0.93809298,1975.5,1974.3,2.046]
[1770989924572,0.93809298,1975.5,1974.3,1.26622213]
[1770989924573,2.20365944,1975.4,1974.3,1.26622213]
[1770989924771,2.20365944,1975.4,1974.3,2.045]
[1770989924970,0.93809298,1975.3,1974.3,2.045]
[1770989925179,0.93809298,1975.3,1974.3,3.3112703]
[1770989925343,0.93809298,1975.3,1975.0,0.001]
[1770989925542,0.93809298,1975.3,1974.0,0.00153886]
[1770989925775,0.93809298,1975.3,1974.1,2.044]
[1770989926072,0.93809298,1975.3,1974.9,0.001]
[1770989926258,0.93809298,1975.3,1974.1,2.045]
[1770989926789,1.26569461,1975.2,1974.1,2.93686771]
[1770989928870,5.06204608,1975.5,1974.2,2.15820344]
[1770989929077,0.93809298,1975.4,1974.2,2.15820344]
[1770989930874,2.20372351,1975.3,1974.2,1.26633573]
[1770989931250,2.20372351,1975.3,1974.1,0.001]
[1770989931251,0.93809298,1975.1,1974.1,0.001]
[1770989931451,0.93809298,1975.0,1974.1,0.001]
[1770989933090,2.20397986,1974.9,1974.1,0.001]
[1770989933579,0.93809298,1974.8,1974.1,0.001]
[1770989933750,2.20397986,1974.9,1974.1,0.001]
[1770989934151,0.93809298,1974.8,1973.8,0.001]
[1770989934386,0.93809298,1974.6,1973.8,0.001]
[1770989935186,2.2042363,1974.5,1973.8,0.001]
[1770989936277,0.93809298,1974.4,1973.8,0.001]
[1770989936858,0.93809298,1974.4,1973.2,0.001]
[1770989937066,0.93809298,1974.2,1973.2,0.001]
[1770989937265,0.93809298,1974.1,1973.2,0.001]
[1770989938409,0.93809298,1974.1,1973.3,0.001]
[1770989939071,0.93809298,1974.1,1973.0,0.00253886]
[1770989939072,0.93809298,1973.9,1973.0,0.00253886]
[1770989939276,0.93809298,1973.7,1972.8,0.001]
[1770989939475,0.913,1973.8,1972.8,0.001]
[1770989939476,0.93809298,1973.5,1972.8,0.001]
[1770989941202,1.26678489,1973.5,1972.8,0.001]
[1770989941504,2.1247119,1973.5,1972.8,0.001]
[1770989941905,1.26678489,1973.5,1972.8,0.001]
[1770989944078,1.809,1973.6,1972.8,0.88824258]
[1770989944304,3.07573976,1973.6,1972.8,0.88824258]
[1770989945220,1.26673976,1973.6,1972.8,0.88824258]
[1770989945412,0.913,1973.8,1972.8,0.88824258]
[1770989945413,1.26659632,1973.8,1973.0,0.88724258]
[1770989945627,1.26659632,1973.8,1972.8,1.26823269]
[1770989945914,0.85792701,1973.7,1972.8,0.001]
[1770989946291,1.26659632,1973.8,1972.8,1.26823342]
[1770989946482,1.26659632,1973.8,1972.8,2.155476]
[1770989946689,1.26659632,1973.8,1972.8,1.26823342]
[1770989947094,2.12452333,1973.8,1972.8,0.001]
[1770989947529,0.85792701,1973.7,1972.8,0.001]
[1770989947827,0.85792701,1973.6,1972.6,0.001]
[1770989947996,0.85792701,1973.4,1972.6,0.001]
[1770989948426,1.808,1973.5,1972.6,0.001]
[1770989949338,1.26684909,1973.4,1972.6,0.001]
[1770989949554,1.808,1973.5,1972.6,0.88824258]
[1770989949756,1.26804489,1974.0,1972.6,0.88824258]
[1770989949924,1.26804489,1974.0,1972.8,0.88724258]
[1770989949925,0.00153886,1974.0,1972.8,0.88724258]
[1770989950128,1.26802588,1974.0,1972.8,0.88724258]
[1770989950518,0.002,1973.5,1972.8,0.88724258]
[1770989951448,0.002,1973.6,1973.2,0.88724258]
[1770989951855,0.00153886,1974.0,1973.1,0.18685624]
[1770989951856,0.00153886,1974.0,1973.4,0.88724258]
[1770989952347,0.002,1974.4,1973.4,0.88724258]
[1770989952551,0.002,1974.4,1973.6,0.88724258]
[1770989953338,0.002,1974.4,1973.5,0.18685624]
[1770989953339,0.002,1974.4,1973.8,0.88724258]
[1770989953539,0.00153886,1975.0,1974.0,0.88724258]
[1770989953852,0.00153886,1975.0,1974.1,0.88724258]
[1770989955449,0.00153886,1975.0,1974.2,1.26633573]
[1770989955686,0.00153886,1975.0,1974.2,4.19633573]
[1770989955844,0.85946587,1975.0,1973.5,0.88724258]
[1770989956016,0.85946587,1975.0,1973.6,0.88724258]
[1770989956950,0.85946587,1975.0,1973.1,1.26701505]
[1770989956951,0.85792701,1974.6,1973.1,1.26701505]
[1770989957140,2.65792701,1974.5,1973.1,1.26701505]
[1770989957451,2.65792701,1974.5,1973.0,5.95694828]
[1770989957452,2.12413446,1974.4,1973.0,0.00153886]
[1770989957751,2.12413446,1974.4,1973.0,1.26858832]
[1770989957940,2.12413446,1974.4,1973.0,4.19658832]
[1770989958142,0.85792701,1974.3,1973.0,0.00153886]
[1770989958342,0.85792701,1974.3,1973.0,1.2686308]
[1770989959225,0.85792701,1974.3,1973.0,2.15587338]
[1770989959651,1.26633573,1974.2,1973.0,2.15587338]
[1770989959824,1.26633573,1974.2,1973.0,0.88878144]
[1770989960020,0.85792701,1974.1,1973.0,2.01453886]
[1770989960238,1.26633573,1974.2,1973.0,0.00153886]
[1770989960239,0.85792701,1973.9,1973.0,0.00153886]
[1770989960441,2.65592701,1973.8,1973.0,0.00153886]
[1770989960644,0.85792701,1973.7,1972.7,0.001]
[1770989960956,1.798,1973.8,1972.8,0.88724258]
[1770989961527,1.798,1973.8,1972.9,1.26717015]
[1770989961528,1.26665653,1973.7,1972.9,1.26717015]
[1770989962149,1.26665653,1973.7,1972.7,1.2682688]
[1770989962458,2.12458354,1973.7,1972.7,1.26829603]
[1770989962777,1.26665653,1973.7,1972.7,0.001]
[1770989962957,0.85792701,1973.6,1972.7,0.001]
[1770989963579,1.26678489,1973.5,1972.9,0.001]
[1770989963756,0.85792701,1973.4,1972.7,0.001]
[1770989963928,0.85792701,1973.4,1972.8,0.001]
[1770989964130,0.85792701,1973.4,1972.5,0.001]
[1770989965144,1.26678489,1973.5,1972.0,0.00253886]
[1770989965145,0.85792701,1973.2,1972.0,0.00253886]
[1770989965349,0.85792701,1973.0,1972.0,0.00253886]
[1770989965656,2.12509716,1972.9,1972.0,0.00253886]
[1770989965860,0.85792701,1972.7,1971.8,0.001]
[1770989967660,1.26736287,1972.6,1971.8,0.001]
[1770989968162,0.85792701,1972.5,1971.8,0.001]
[1770989968862,0.85792701,1972.5,1971.5,0.001]
[1770989969440,0.85792701,1972.3,1971.5,0.001]
[1770989969663,1.795,1972.3,1971.5,0.001]
[1770989969866,1.26761991,1972.2,1971.5,0.001]
[1770989971178,0.82235931,1972.2,1971.5,0.001]
[1770989971476,0.1024,1972.1,1971.2,0.001]
[1770989971631,0.82235931,1972.0,1971.2,0.001]
[1770989971836,1.26781276,1971.9,1971.2,0.001]
[1770989972170,1.794,1971.8,1971.2,0.001]
[1770989972467,2.61635931,1971.8,1971.0,0.00153886]
[1770989972667,0.914,1971.7,1971.0,0.00153886]
[1770989973253,1.73635931,1971.7,1971.0,0.00153886]
[1770989974168,1.26800568,1971.6,1971.0,0.00153886]
[1770989975041,1.26800568,1971.6,1970.4,0.05075111]
[1770989975042,10.8516418,1971.4,1970.4,0.05075111]
[1770989975246,1.794,1971.3,1970.3,1.26883454]
[1770989975763,1.794,1971.3,1970.3,2.09604807]
[1770989975962,1.794,1971.3,1970.4,0.82721353]
[1770989976141,3.83078063,1971.6,1970.5,1.26871352]
[1770989976468,3.83078063,1971.6,1971.1,0.001]
[1770989976674,3.83078063,1971.6,1971.0,0.001]
[1770989976896,0.76877495,1971.5,1970.3,1.26879512]
[1770989977079,0.76877495,1971.5,1970.2,1.40057993]
[1770989977246,0.76877495,1971.3,1970.2,1.40056671]
[1770989977440,0.1024,1971.5,1970.3,0.82721353]
[1770989977674,1.795,1971.3,1970.3,0.82721353]
[1770989978184,3.06320974,1971.3,1970.4,1.26877791]
[1770989978398,1.795,1971.3,1970.5,0.82721353]
[1770989978897,1.795,1971.3,1970.4,1.26877791]
[1770989978898,0.00153886,1972.0,1970.7,0.82721353]
[1770989979069,0.00153886,1972.0,1970.9,0.82721353]
[1770989979273,1.26929088,1972.0,1970.9,0.82721353]